[Event "Live Chess"]
[Site "Chess.com"]
[Date "2023.05.21"]
[Round "-"]
[White "Biranidun"]
[Black "SupremeTactician"]
[Result "1-0"]
[WhiteElo "2525"]
[BlackElo "2140"]
[TimeControl "300"]
[EndTime "8:56:25 PDT"]
[Termination "Biranidun won by resignation"]

1. e4 {[%clk 0:04:59.5]} 1... e5 {[%clk 0:04:57]} 2. Nf3 {[%clk 0:04:58.6]} 2...
Nc6 {[%clk 0:04:56.4]} 3. Bc4 {[%clk 0:04:57.3]} 3... Bc5 {[%clk 0:04:55.8]} 4.
c3 {[%clk 0:04:56.4]} 4... Nf6 {[%clk 0:04:55.1]} 5. d3 {[%clk 0:04:55.8]} 5...
O-O {[%clk 0:04:54.2]} 6. O-O {[%clk 0:04:55]} 6... d5 {[%clk 0:04:54]} 7. exd5
{[%clk 0:04:54.8]} 7... Nxd5 {[%clk 0:04:53.9]} 8. Re1 {[%clk 0:04:54.4]} 8...
Bg4 {[%clk 0:04:53.6]} 9. h3 {[%clk 0:04:52.6]} 9... Bh5 {[%clk 0:04:53]} 10.
Nbd2 {[%clk 0:04:51.6]} 10... Nb6 {[%clk 0:04:52.3]} 11. Bb5 {[%clk 0:04:50.9]}
11... a6 {[%clk 0:04:51.2]} 12. Bxc6 {[%clk 0:04:50]} 12... bxc6 {[%clk
0:04:51.1]} 13. Qc2 {[%clk 0:04:48.3]} 13... f6 {[%clk 0:04:50]} 14. Ne4 {[%clk
0:04:43.5]} 14... Be7 {[%clk 0:04:49.3]} 15. Nfd2 {[%clk 0:04:38.8]} 15... c5
{[%clk 0:04:46.8]} 16. Ng3 {[%clk 0:04:36.7]} 16... Bg6 {[%clk 0:04:45.5]} 17.
Nde4 {[%clk 0:04:31.6]} 17... f5 {[%clk 0:04:45]} 18. Nd2 {[%clk 0:04:30.7]}
18... c4 {[%clk 0:04:44.1]} 19. dxc4 {[%clk 0:04:21.6]} 19... Bh4 {[%clk
0:04:42.5]} 20. c5 {[%clk 0:04:19.3]} 20... Nd5 {[%clk 0:04:36.6]} 21. Rxe5
{[%clk 0:04:15.7]} 21... Bxg3 {[%clk 0:04:35.5]} 22. fxg3 {[%clk 0:04:14.4]}
22... f4 {[%clk 0:04:35]} 23. Qb3 {[%clk 0:04:12.4]} 23... c6 {[%clk 0:04:33.3]}
24. gxf4 {[%clk 0:04:08]} 24... Rxf4 {[%clk 0:04:32.2]} 25. Nf3 {[%clk
0:04:06.5]} 25... Qf6 {[%clk 0:04:10.4]} 26. Bxf4 {[%clk 0:04:04.8]} 26... Qxf4
{[%clk 0:04:08.1]} 27. Rxd5 {[%clk 0:04:04.2]} 27... Bf7 {[%clk 0:04:06.8]} 28.
Qb7 {[%clk 0:03:55.8]} 28... Re8 {[%clk 0:04:05.4]} 29. Re5 {[%clk 0:03:48.8]}
29... Rxe5 {[%clk 0:04:01.7]} 30. Qb8+ {[%clk 0:03:48.2]} 30... Re8 {[%clk
0:03:55.8]} 31. Qxf4 {[%clk 0:03:48.1]} 1-0

[Event "Live Chess"]
[Site "Chess.com"]
[Date "2023.05.21"]
[Round "-"]
[White "McSlash1"]
[Black "grillage"]
[Result "1/2-1/2"]
[WhiteElo "1973"]
[BlackElo "1795"]
[TimeControl "300"]
[EndTime "8:56:34 PDT"]
[Termination "Game drawn by repetition"]

1. e4 {[%clk 0:04:59.2]} 1... d5 {[%clk 0:04:58.4]} 2. exd5 {[%clk 0:04:59.1]}
2... Qxd5 {[%clk 0:04:56.6]} 3. Nc3 {[%clk 0:04:58.5]} 3... Qd8 {[%clk
0:04:55.5]} 4. d4 {[%clk 0:04:58.2]} 4... Nf6 {[%clk 0:04:54]} 5. Nf3 {[%clk
0:04:57.8]} 5... Bg4 {[%clk 0:04:53]} 6. Bc4 {[%clk 0:04:56.1]} 6... e6 {[%clk
0:04:51.8]} 7. h3 {[%clk 0:04:55.1]} 7... Bxf3 {[%clk 0:04:50.5]} 8. Qxf3 {[%clk
0:04:55]} 8... c6 {[%clk 0:04:49.4]} 9. Be3 {[%clk 0:04:54.2]} 9... Nbd7 {[%clk
0:04:45.7]} 10. O-O-O {[%clk 0:04:52.4]} 10... Bb4 {[%clk 0:04:43.7]} 11. Ne4
{[%clk 0:04:50.5]} 11... Nxe4 {[%clk 0:04:41.5]} 12. Qxe4 {[%clk 0:04:50.4]}
12... Nf6 {[%clk 0:04:40.5]} 13. Qf3 {[%clk 0:04:48.6]} 13... Nd5 {[%clk
0:04:34.4]} 14. Bd2 {[%clk 0:04:46.2]} 14... Bxd2+ {[%clk 0:04:31.9]} 15. Rxd2
{[%clk 0:04:46.1]} 15... Qf6 {[%clk 0:04:28.1]} 16. Bxd5 {[%clk 0:04:40.1]}
16... cxd5 {[%clk 0:04:27.3]} 17. Qg3 {[%clk 0:04:37.9]} 17... O-O {[%clk
0:04:22.2]} 18. Rd3 {[%clk 0:04:35.2]} 18... Qg6 {[%clk 0:04:20.3]} 19. Qf3
{[%clk 0:04:24.2]} 19... Rac8 {[%clk 0:04:17]} 20. Kb1 {[%clk 0:04:22.1]} 20...
Rc6 {[%clk 0:04:14.4]} 21. Rc1 {[%clk 0:04:15.3]} 21... b5 {[%clk 0:04:11.7]}
22. b3 {[%clk 0:04:13.6]} 22... b4 {[%clk 0:04:09.5]} 23. Kb2 {[%clk 0:04:13]}
23... Rfc8 {[%clk 0:04:08.3]} 24. c3 {[%clk 0:04:11.4]} 24... bxc3+ {[%clk
0:04:06]} 25. Rdxc3 {[%clk 0:04:11.3]} 25... Rxc3 {[%clk 0:04:05.1]} 26. Rxc3
{[%clk 0:04:11.2]} 26... Rxc3 {[%clk 0:04:03.7]} 27. Qxc3 {[%clk 0:04:11.1]}
27... h5 {[%clk 0:03:55.7]} 28. g3 {[%clk 0:04:10.1]} 28... Qf5 {[%clk
0:03:51.9]} 29. Qc8+ {[%clk 0:03:48.4]} 29... Kh7 {[%clk 0:03:50.6]} 30. Qc2
{[%clk 0:03:47.8]} 30... Kg6 {[%clk 0:03:44.5]} 31. a4 {[%clk 0:03:46.2]} 31...
Kf6 {[%clk 0:03:40.6]} 32. Qxf5+ {[%clk 0:03:45.1]} 32... Kxf5 {[%clk
0:03:39.2]} 33. b4 {[%clk 0:03:45]} 33... e5 {[%clk 0:03:34.8]} 34. Kc3 {[%clk
0:03:43.5]} 34... Ke6 {[%clk 0:03:23.6]} 35. b5 {[%clk 0:03:39.2]} 35... Kd6
{[%clk 0:03:22.1]} 36. a5 {[%clk 0:03:37.7]} 36... f6 {[%clk 0:03:10.4]} 37. f3
{[%clk 0:03:35.2]} 37... Kc7 {[%clk 0:03:05]} 38. f4 {[%clk 0:03:26.8]} 38... e4
{[%clk 0:03:03.2]} 39. g4 {[%clk 0:03:22.5]} 39... hxg4 {[%clk 0:02:59.2]} 40.
hxg4 {[%clk 0:03:22.4]} 40... g6 {[%clk 0:02:57.7]} 41. Kd2 {[%clk 0:03:14.3]}
41... Kd6 {[%clk 0:02:53.6]} 42. Ke3 {[%clk 0:03:12.6]} 42... f5 {[%clk
0:02:48.4]} 43. g5 {[%clk 0:03:11.7]} 43... Kc7 {[%clk 0:02:46.9]} 44. Kf2
{[%clk 0:03:10.5]} 44... Kd6 {[%clk 0:02:45.9]} 45. Ke3 {[%clk 0:03:09.8]} 45...
Kc7 {[%clk 0:02:45.5]} 46. Kd2 {[%clk 0:03:09.7]} 46... Kd6 {[%clk 0:02:45]} 47.
Kc3 {[%clk 0:03:09.6]} 47... Kc7 {[%clk 0:02:43.6]} 48. Kb4 {[%clk 0:03:09.2]}
48... Kd6 {[%clk 0:02:39.2]} 49. Kc3 {[%clk 0:03:06.1]} 49... Kc7 {[%clk
0:02:38.3]} 50. Kb3 {[%clk 0:03:05.7]} 50... Kd6 {[%clk 0:02:37.6]} 51. Kb4
{[%clk 0:03:05.3]} 51... Kc7 {[%clk 0:02:32.5]} 52. Kb3 {[%clk 0:02:59.6]} 52...
Kd6 {[%clk 0:02:31.1]} 53. Kc3 {[%clk 0:02:56.5]} 1/2-1/2

[Event "Live Chess"]
[Site "Chess.com"]
[Date "2023.05.21"]
[Round "-"]
[White "Duke_of_Bebington"]
[Black "ChessClubLive"]
[Result "0-1"]
[WhiteElo "1559"]
[BlackElo "1621"]
[TimeControl "300"]
[EndTime "8:56:35 PDT"]
[Termination "ChessClubLive won by checkmate"]

1. e4 {[%clk 0:04:58.4]} 1... c5 {[%clk 0:04:57.3]} 2. c3 {[%clk 0:04:50]} 2...
e6 {[%clk 0:04:54.5]} 3. d4 {[%clk 0:04:48.1]} 3... cxd4 {[%clk 0:04:53.6]} 4.
cxd4 {[%clk 0:04:48]} 4... Nf6 {[%clk 0:04:51.9]} 5. Nc3 {[%clk 0:04:46.6]} 5...
Bb4 {[%clk 0:04:50.1]} 6. Bd3 {[%clk 0:04:39.4]} 6... Nc6 {[%clk 0:04:47.1]} 7.
Nf3 {[%clk 0:04:37.7]} 7... d5 {[%clk 0:04:44.1]} 8. e5 {[%clk 0:04:26.4]} 8...
Nd7 {[%clk 0:04:41.1]} 9. O-O {[%clk 0:04:24]} 9... O-O {[%clk 0:04:34.5]} 10.
Be3 {[%clk 0:04:16.5]} 10... f5 {[%clk 0:04:27.5]} 11. exf6 {[%clk 0:04:14.5]}
11... Nxf6 {[%clk 0:04:26.4]} 12. a3 {[%clk 0:04:09.9]} 12... Be7 {[%clk
0:04:21.3]} 13. Bb1 {[%clk 0:04:06.8]} 13... Ng4 {[%clk 0:04:16.3]} 14. Qc2
{[%clk 0:04:00.3]} 14... e5 {[%clk 0:04:09.6]} 15. Qxh7+ {[%clk 0:03:56.3]}
15... Kf7 {[%clk 0:04:04.3]} 16. Bg6+ {[%clk 0:03:47.5]} 16... Ke6 {[%clk
0:03:54]} 17. Qh3 {[%clk 0:03:26.9]} 17... Kf6 {[%clk 0:03:25.9]} 18. dxe5+
{[%clk 0:03:09.5]} 18... Ngxe5 {[%clk 0:03:23.5]} 19. Qg3 {[%clk 0:02:51.1]}
19... Nxf3+ {[%clk 0:03:07.9]} 20. Qxf3+ {[%clk 0:02:46.2]} 20... Kxg6 {[%clk
0:03:01.6]} 21. Qg3+ {[%clk 0:02:45.3]} 21... Kh7 {[%clk 0:02:57.2]} 22. Rad1
{[%clk 0:02:38.5]} 22... Be6 {[%clk 0:02:50.7]} 23. Bd4 {[%clk 0:02:30.1]} 23...
Bf6 {[%clk 0:02:43.9]} 24. Be3 {[%clk 0:02:10.8]} 24... Qb8 {[%clk 0:02:32.7]}
25. Bf4 {[%clk 0:02:03.8]} 25... Be5 {[%clk 0:02:23.5]} 26. Qh4+ {[%clk
0:01:58.9]} 26... Kg8 {[%clk 0:02:21.4]} 27. Bxe5 {[%clk 0:01:51]} 27... Qxe5
{[%clk 0:02:19.1]} 28. Rfe1 {[%clk 0:01:48.2]} 28... Qf6 {[%clk 0:02:04.6]} 29.
Qg3 {[%clk 0:01:34.9]} 29... Rae8 {[%clk 0:01:56.6]} 30. h3 {[%clk 0:01:11.9]}
30... Ne7 {[%clk 0:01:28.6]} 31. Ne2 {[%clk 0:01:08]} 31... Nf5 {[%clk
0:01:27.1]} 32. Qc3 {[%clk 0:01:01.9]} 32... Nh4 {[%clk 0:01:20.3]} 33. Qxf6
{[%clk 0:00:54.4]} 33... Rxf6 {[%clk 0:01:17.5]} 34. Ng3 {[%clk 0:00:53.3]}
34... Ref8 {[%clk 0:01:08.3]} 35. Re2 {[%clk 0:00:51.9]} 35... Bd7 {[%clk
0:00:53.6]} 36. Rxd5 {[%clk 0:00:48.4]} 36... Bc6 {[%clk 0:00:52.8]} 37. Rdd2
{[%clk 0:00:41.5]} 37... Nxg2 {[%clk 0:00:51.9]} 38. Ne4 {[%clk 0:00:27.6]}
38... Nf4 {[%clk 0:00:40.1]} 39. Re3 {[%clk 0:00:24.6]} 39... Bxe4 {[%clk
0:00:31.2]} 40. Rxe4 {[%clk 0:00:23.5]} 40... Nxh3+ {[%clk 0:00:30.2]} 41. Kg2
{[%clk 0:00:22.1]} 41... Nxf2 {[%clk 0:00:28.6]} 42. Rxf2 {[%clk 0:00:20.6]}
42... Rxf2+ {[%clk 0:00:26.7]} 43. Kg3 {[%clk 0:00:20.5]} 43... Rxb2 {[%clk
0:00:23.5]} 44. Rb4 {[%clk 0:00:19.2]} 44... Rxb4 {[%clk 0:00:22]} 45. axb4
{[%clk 0:00:19.1]} 45... Rc8 {[%clk 0:00:20.2]} 46. Kf3 {[%clk 0:00:18.3]} 46...
Rc4 {[%clk 0:00:18.9]} 47. Ke3 {[%clk 0:00:18.2]} 47... Rxb4 {[%clk 0:00:18.3]}
48. Kd3 {[%clk 0:00:18.1]} 48... Rb5 {[%clk 0:00:17.5]} 49. Kc3 {[%clk 0:00:18]}
49... a5 {[%clk 0:00:16.5]} 50. Kc4 {[%clk 0:00:17.9]} 50... Rb6 {[%clk
0:00:15.2]} 51. Kc5 {[%clk 0:00:16.8]} 51... Rc6+ {[%clk 0:00:14.2]} 52. Kb5
{[%clk 0:00:15.6]} 52... g5 {[%clk 0:00:13.3]} 53. Kxa5 {[%clk 0:00:14.8]} 53...
g4 {[%clk 0:00:12.7]} 54. Kb5 {[%clk 0:00:14.6]} 54... g3 {[%clk 0:00:12]} 55.
Ka5 {[%clk 0:00:14.2]} 55... g2 {[%clk 0:00:11.8]} 56. Kb5 {[%clk 0:00:12.8]}
56... g1=Q {[%clk 0:00:10.8]} 57. Ka5 {[%clk 0:00:12.7]} 57... Qa1+ {[%clk
0:00:09.2]} 58. Kb5 {[%clk 0:00:12.6]} 58... Qb1+ {[%clk 0:00:07.8]} 59. Ka5
{[%clk 0:00:12.5]} 59... Rc2 {[%clk 0:00:06.9]} 60. Ka4 {[%clk 0:00:10.9]} 60...
Ra2# {[%clk 0:00:06.5]} 0-1

[Event "Live Chess"]
[Site "Chess.com"]
[Date "2023.05.21"]
[Round "-"]
[White "luckywookie"]
[Black "OleksiyJr1"]
[Result "1-0"]
[WhiteElo "838"]
[BlackElo "1025"]
[TimeControl "300"]
[EndTime "8:56:56 PDT"]
[Termination "luckywookie won by checkmate"]

1. e4 {[%clk 0:04:58.4]} 1... c5 {[%clk 0:04:58.9]} 2. c3 {[%clk 0:04:55.5]}
2... Nc6 {[%clk 0:04:58.8]} 3. d4 {[%clk 0:04:53.2]} 3... d6 {[%clk 0:04:58.4]}
4. Nf3 {[%clk 0:04:48.6]} 4... cxd4 {[%clk 0:04:57.2]} 5. cxd4 {[%clk
0:04:47.2]} 5... e5 {[%clk 0:04:56.8]} 6. d5 {[%clk 0:04:43.3]} 6... Nce7 {[%clk
0:04:55.6]} 7. Bc4 {[%clk 0:04:40.4]} 7... Nf6 {[%clk 0:04:50.6]} 8. Nc3 {[%clk
0:04:36.4]} 8... Ng6 {[%clk 0:04:45]} 9. Bg5 {[%clk 0:04:22.2]} 9... Bg4 {[%clk
0:04:43.6]} 10. Bb5+ {[%clk 0:04:15.5]} 10... Ke7 {[%clk 0:04:39.1]} 11. h3
{[%clk 0:04:01.5]} 11... Bxf3 {[%clk 0:04:38]} 12. Qxf3 {[%clk 0:03:59.7]} 12...
Qa5 {[%clk 0:04:32.3]} 13. Qf5 {[%clk 0:03:41.9]} 13... a6 {[%clk 0:04:21]} 14.
Qd7# {[%clk 0:03:38.7]} 1-0

[Event "Live Chess"]
[Site "Chess.com"]
[Date "2023.05.21"]
[Round "-"]
[White "ranvir123"]
[Black "Bob2pen"]
[Result "0-1"]
[WhiteElo "985"]
[BlackElo "1877"]
[TimeControl "300"]
[EndTime "8:57:03 PDT"]
[Termination "Bob2pen won by resignation"]

1. e4 {[%clk 0:04:58.3]} 1... e6 {[%clk 0:04:59]} 2. d4 {[%clk 0:04:56]} 2... d5
{[%clk 0:04:58.1]} 3. e5 {[%clk 0:04:55.4]} 3... c5 {[%clk 0:04:56.9]} 4. Nf3
{[%clk 0:04:51.6]} 4... Nc6 {[%clk 0:04:55.1]} 5. Bb5 {[%clk 0:04:49.6]} 5...
Bd7 {[%clk 0:04:51.5]} 6. Nc3 {[%clk 0:04:48.1]} 6... cxd4 {[%clk 0:04:49.6]} 7.
Nxd4 {[%clk 0:04:44.3]} 7... Nxe5 {[%clk 0:04:43.7]} 8. O-O {[%clk 0:04:32.3]}
8... Nf6 {[%clk 0:04:41.6]} 9. Bg5 {[%clk 0:04:29.8]} 9... Be7 {[%clk
0:04:39.9]} 10. f4 {[%clk 0:04:24.9]} 10... Nc6 {[%clk 0:04:36.2]} 11. Nxc6
{[%clk 0:04:22.4]} 11... Bxc6 {[%clk 0:04:34.6]} 12. Re1 {[%clk 0:04:14.7]}
12... O-O {[%clk 0:04:32.3]} 13. Bxf6 {[%clk 0:04:10.7]} 13... Bxf6 {[%clk
0:04:29.5]} 14. Qg4 {[%clk 0:04:07.8]} 14... Qb6+ {[%clk 0:04:21.5]} 15. Kf1
{[%clk 0:04:02.2]} 15... Bxb5+ {[%clk 0:04:20.1]} 16. Nxb5 {[%clk 0:03:59.9]}
16... Qxb5+ {[%clk 0:04:19.2]} 17. Kg1 {[%clk 0:03:58.8]} 17... Qxb2 {[%clk
0:04:13.6]} 0-1

[Event "Live Chess"]
[Site "Chess.com"]
[Date "2023.05.21"]
[Round "-"]
[White "TheSmoulderingMaster"]
[Black "NatashaRegan"]
[Result "1-0"]
[WhiteElo "1684"]
[BlackElo "1695"]
[TimeControl "300"]
[EndTime "8:57:06 PDT"]
[Termination "TheSmoulderingMaster won on time"]

1. e4 {[%clk 0:04:58.2]} 1... Nf6 {[%clk 0:04:57.7]} 2. e5 {[%clk 0:04:57.1]}
2... Nd5 {[%clk 0:04:56.6]} 3. d4 {[%clk 0:04:56.2]} 3... d6 {[%clk 0:04:55.2]}
4. c4 {[%clk 0:04:55.3]} 4... Nb6 {[%clk 0:04:53.8]} 5. f4 {[%clk 0:04:54.1]}
5... dxe5 {[%clk 0:04:52]} 6. fxe5 {[%clk 0:04:53.5]} 6... Bf5 {[%clk
0:04:49.6]} 7. Nc3 {[%clk 0:04:48]} 7... e6 {[%clk 0:04:47.7]} 8. Nf3 {[%clk
0:04:44.8]} 8... Bg4 {[%clk 0:04:46.1]} 9. Be3 {[%clk 0:04:39.7]} 9... Nc6
{[%clk 0:04:30.6]} 10. b3 {[%clk 0:04:38.4]} 10... Bb4 {[%clk 0:04:25.8]} 11.
Rc1 {[%clk 0:04:26.2]} 11... O-O {[%clk 0:04:13.4]} 12. Be2 {[%clk 0:04:22.7]}
12... Bxf3 {[%clk 0:04:10.7]} 13. Bxf3 {[%clk 0:04:21.4]} 13... f6 {[%clk
0:04:00.3]} 14. exf6 {[%clk 0:04:15.6]} 14... Qxf6 {[%clk 0:03:56.3]} 15. O-O
{[%clk 0:04:13.6]} 15... Rad8 {[%clk 0:03:52.7]} 16. Qc2 {[%clk 0:03:51.9]}
16... Nxd4 {[%clk 0:03:48.4]} 17. Bxd4 {[%clk 0:03:46]} 17... Qxd4+ {[%clk
0:03:46.4]} 18. Kh1 {[%clk 0:03:45.9]} 18... Bxc3 {[%clk 0:03:33]} 19. Qxc3
{[%clk 0:03:44.7]} 19... Qxc3 {[%clk 0:03:31.8]} 20. Rxc3 {[%clk 0:03:44.1]}
20... c6 {[%clk 0:03:29.6]} 21. h3 {[%clk 0:03:38.8]} 21... Rd2 {[%clk
0:03:26.4]} 22. a4 {[%clk 0:03:35.6]} 22... a5 {[%clk 0:03:22.4]} 23. Re3 {[%clk
0:03:33.5]} 23... Rf6 {[%clk 0:03:18.2]} 24. Rfe1 {[%clk 0:03:31.3]} 24... Kf7
{[%clk 0:03:13.8]} 25. Bg4 {[%clk 0:03:28.9]} 25... Rff2 {[%clk 0:02:45.8]} 26.
Bxe6+ {[%clk 0:03:25.6]} 26... Kf6 {[%clk 0:02:43.8]} 27. Rg3 {[%clk 0:03:05.9]}
27... Rde2 {[%clk 0:02:36]} 28. Rxe2 {[%clk 0:03:01.6]} 28... Rxe2 {[%clk
0:02:34.2]} 29. Bg4 {[%clk 0:02:57.8]} 29... Re1+ {[%clk 0:02:29.6]} 30. Kh2
{[%clk 0:02:56.6]} 30... Na8 {[%clk 0:02:19.1]} 31. Rd3 {[%clk 0:02:53.3]} 31...
Nc7 {[%clk 0:02:15.8]} 32. Rd7 {[%clk 0:02:50.8]} 32... Re7 {[%clk 0:02:13]} 33.
Rd8 {[%clk 0:02:46.4]} 33... Ne6 {[%clk 0:02:10.4]} 34. Rd1 {[%clk 0:02:43.2]}
34... Nf4 {[%clk 0:02:07.6]} 35. Rf1 {[%clk 0:02:40.9]} 35... Kg5 {[%clk
0:01:53.5]} 36. Rd1 {[%clk 0:02:34.4]} 36... Re3 {[%clk 0:01:47.5]} 37. Rd7
{[%clk 0:02:19.7]} 37... Kf6 {[%clk 0:01:27]} 38. Rxb7 {[%clk 0:02:17.3]} 38...
h5 {[%clk 0:01:25.2]} 39. Bf3 {[%clk 0:02:13.7]} 39... h4 {[%clk 0:01:16.8]} 40.
Rb6 {[%clk 0:02:09.7]} 40... Ke5 {[%clk 0:01:10.1]} 41. Rxc6 {[%clk 0:02:06.7]}
41... Kd4 {[%clk 0:01:03.4]} 42. Rc7 {[%clk 0:02:00]} 42... Nd3 {[%clk
0:00:58.3]} 43. Rd7+ {[%clk 0:01:54.7]} 43... Kc3 {[%clk 0:00:56.4]} 44. Rxg7
{[%clk 0:01:49.4]} 44... Ne1 {[%clk 0:00:50.3]} 45. c5 {[%clk 0:01:41.4]} 45...
Nxf3+ {[%clk 0:00:44.8]} 46. gxf3 {[%clk 0:01:39.9]} 46... Rxf3 {[%clk
0:00:43.4]} 47. c6 {[%clk 0:01:37.7]} 47... Kxb3 {[%clk 0:00:41.2]} 48. Rg5
{[%clk 0:01:30.4]} 48... Rc3 {[%clk 0:00:38.5]} 49. Rxa5 {[%clk 0:01:27.9]}
49... Rxc6 {[%clk 0:00:36.8]} 50. Rh5 {[%clk 0:01:22.7]} 50... Rc2+ {[%clk
0:00:34.6]} 51. Kg1 {[%clk 0:01:20.9]} 51... Rc4 {[%clk 0:00:29.3]} 52. a5
{[%clk 0:01:17.9]} 52... Ra4 {[%clk 0:00:27.7]} 53. Kf2 {[%clk 0:01:15.9]} 53...
Kc3 {[%clk 0:00:26.1]} 54. Ke2 {[%clk 0:01:12.7]} 54... Ra2+ {[%clk 0:00:22.2]}
55. Ke3 {[%clk 0:01:11]} 55... Ra4 {[%clk 0:00:20.9]} 56. Rc5+ {[%clk
0:01:07.4]} 56... Kb4 {[%clk 0:00:18.9]} 57. Rh5 {[%clk 0:01:04.8]} 57... Rxa5
{[%clk 0:00:17.5]} 58. Rxh4+ {[%clk 0:01:03.5]} 58... Kb3 {[%clk 0:00:15.1]} 59.
Kf3 {[%clk 0:01:01.4]} 59... Rf5+ {[%clk 0:00:13.9]} 60. Kg4 {[%clk 0:01:00.2]}
60... Rf7 {[%clk 0:00:12.7]} 61. Rh8 {[%clk 0:00:58.5]} 61... Kc3 {[%clk
0:00:11.2]} 62. h4 {[%clk 0:00:57.5]} 62... Rg7+ {[%clk 0:00:10.3]} 63. Kf5
{[%clk 0:00:55.9]} 63... Kd4 {[%clk 0:00:09.5]} 64. h5 {[%clk 0:00:55.1]} 64...
Rf7+ {[%clk 0:00:08.4]} 65. Kg6 {[%clk 0:00:53.8]} 65... Ra7 {[%clk 0:00:07]}
66. h6 {[%clk 0:00:53.1]} 66... Ke5 {[%clk 0:00:06.1]} 67. Re8+ {[%clk
0:00:51.1]} 67... Kd6 {[%clk 0:00:04.6]} 68. h7 {[%clk 0:00:49.9]} 68... Ra6
{[%clk 0:00:01.8]} 69. h8=Q {[%clk 0:00:47.4]} 1-0

[Event "Live Chess"]
[Site "Chess.com"]
[Date "2023.05.21"]
[Round "-"]
[White "Doge_Dandolo"]
[Black "GMHarry-youtube"]
[Result "1-0"]
[WhiteElo "1867"]
[BlackElo "1985"]
[TimeControl "300"]
[EndTime "8:57:14 PDT"]
[Termination "Doge_Dandolo won by checkmate"]

1. Nf3 {[%clk 0:04:57.7]} 1... e5 {[%clk 0:04:58.3]} 2. Nxe5 {[%clk 0:04:55.8]}
2... Nc6 {[%clk 0:04:57.5]} 3. d4 {[%clk 0:04:54.8]} 3... Nf6 {[%clk 0:04:54.6]}
4. Bf4 {[%clk 0:04:52.5]} 4... d5 {[%clk 0:04:19.2]} 5. e3 {[%clk 0:04:42.5]}
5... Bd6 {[%clk 0:04:15.4]} 6. Bb5 {[%clk 0:04:37.4]} 6... Bd7 {[%clk
0:04:13.6]} 7. Nxc6 {[%clk 0:04:26.7]} 7... bxc6 {[%clk 0:04:10.7]} 8. Bd3
{[%clk 0:04:19.8]} 8... Bxf4 {[%clk 0:04:02.4]} 9. exf4 {[%clk 0:04:18.5]} 9...
O-O {[%clk 0:04:02.3]} 10. O-O {[%clk 0:04:17.1]} 10... c5 {[%clk 0:03:58.9]}
11. c3 {[%clk 0:04:11.2]} 11... cxd4 {[%clk 0:03:56.1]} 12. cxd4 {[%clk
0:04:10.4]} 12... c6 {[%clk 0:03:55.5]} 13. Nd2 {[%clk 0:04:09]} 13... Qc7
{[%clk 0:03:54.1]} 14. g3 {[%clk 0:04:07.3]} 14... Rae8 {[%clk 0:03:49.4]} 15.
Nf3 {[%clk 0:04:05]} 15... Re7 {[%clk 0:03:47.7]} 16. Ne5 {[%clk 0:04:03.4]}
16... Rfe8 {[%clk 0:03:45.8]} 17. Qc2 {[%clk 0:04:01.4]} 17... Bh3 {[%clk
0:03:42.6]} 18. Rfe1 {[%clk 0:03:59.7]} 18... Nd7 {[%clk 0:03:38.5]} 19. Bxh7+
{[%clk 0:03:55.4]} 19... Kh8 {[%clk 0:03:33.9]} 20. Bf5 {[%clk 0:03:53.8]} 20...
Nxe5 {[%clk 0:03:26.7]} 21. fxe5 {[%clk 0:03:48.7]} 21... Bxf5 {[%clk
0:03:24.7]} 22. Qxf5 {[%clk 0:03:46.9]} 22... g6 {[%clk 0:03:24.6]} 23. Qf4
{[%clk 0:03:40.1]} 23... Kg7 {[%clk 0:03:18.8]} 24. Rac1 {[%clk 0:03:36.8]}
24... Re6 {[%clk 0:03:16.4]} 25. Re3 {[%clk 0:03:32.4]} 25... Rh8 {[%clk
0:03:08.3]} 26. Rec3 {[%clk 0:03:29.7]} 26... Rh5 {[%clk 0:03:01.7]} 27. Qf3
{[%clk 0:03:18.7]} 27... Qc8 {[%clk 0:02:56.7]} 28. b4 {[%clk 0:03:04.4]} 28...
Qh8 {[%clk 0:02:44.9]} 29. Qg2 {[%clk 0:03:01.1]} 29... Qe8 {[%clk 0:02:36.5]}
30. a4 {[%clk 0:02:56.6]} 30... a6 {[%clk 0:02:33.4]} 31. Rc5 {[%clk 0:02:50.6]}
31... Qb8 {[%clk 0:02:21]} 32. Rb1 {[%clk 0:02:38.4]} 32... Rh8 {[%clk
0:02:11.3]} 33. f4 {[%clk 0:02:36.7]} 33... Qb6 {[%clk 0:02:03.3]} 34. Qc2
{[%clk 0:02:33.9]} 34... Rb8 {[%clk 0:02:00.7]} 35. Qc3 {[%clk 0:02:32.2]} 35...
f6 {[%clk 0:01:52.6]} 36. b5 {[%clk 0:02:22.6]} 36... a5 {[%clk 0:01:44]} 37.
Kg2 {[%clk 0:02:11.6]} 37... fxe5 {[%clk 0:01:37.6]} 38. fxe5 {[%clk 0:02:09.3]}
38... Rb7 {[%clk 0:01:29.2]} 39. Rb3 {[%clk 0:02:02.9]} 39... Rb8 {[%clk
0:01:21.6]} 40. Qc2 {[%clk 0:01:58]} 40... Rb7 {[%clk 0:01:18.6]} 41. Rbc3
{[%clk 0:01:55.1]} 41... cxb5 {[%clk 0:01:12.3]} 42. Rxb5 {[%clk 0:01:52.3]}
42... Qxd4 {[%clk 0:01:08.8]} 43. Rxb7+ {[%clk 0:01:50.3]} 43... Kh6 {[%clk
0:01:08.2]} 44. Qc1+ {[%clk 0:01:48.6]} 44... g5 {[%clk 0:01:03.4]} 45. h4
{[%clk 0:01:44.8]} 45... Rxe5 {[%clk 0:00:59.1]} 46. Rc6+ {[%clk 0:01:41]} 46...
Kh5 {[%clk 0:00:54.3]} 47. Rh7+ {[%clk 0:01:30.5]} 47... Kg4 {[%clk 0:00:53.4]}
48. Rc2 {[%clk 0:01:16.6]} 48... Qe4+ {[%clk 0:00:49.2]} 49. Kh2 {[%clk
0:01:15.7]} 49... Qxh7 {[%clk 0:00:44.4]} 50. Qd1+ {[%clk 0:01:13.3]} 50... Kf5
{[%clk 0:00:42.2]} 51. Qd3+ {[%clk 0:01:11.2]} 51... Re4 {[%clk 0:00:40.7]} 52.
Qxd5+ {[%clk 0:01:09]} 52... Kg4 {[%clk 0:00:33.9]} 53. Qd1+ {[%clk 0:01:06.1]}
53... Kf5 {[%clk 0:00:33]} 54. Rc5+ {[%clk 0:01:04]} 54... Ke6 {[%clk
0:00:31.6]} 55. Qd5+ {[%clk 0:01:01.7]} 55... Kf6 {[%clk 0:00:27.8]} 56. Rc6+
{[%clk 0:00:59.4]} 56... Kg7 {[%clk 0:00:25.2]} 57. Rc7+ {[%clk 0:00:57.7]}
57... Kh8 {[%clk 0:00:23.9]} 58. Rxh7+ {[%clk 0:00:55.9]} 58... Kxh7 {[%clk
0:00:23.8]} 59. Qxe4+ {[%clk 0:00:54.5]} 59... Kh6 {[%clk 0:00:23.2]} 60. hxg5+
{[%clk 0:00:53]} 60... Kh5 {[%clk 0:00:22.7]} 61. Qh4+ {[%clk 0:00:51.5]} 61...
Kg6 {[%clk 0:00:21]} 62. Qh6+ {[%clk 0:00:50.7]} 62... Kf5 {[%clk 0:00:20.9]}
63. Qf6+ {[%clk 0:00:48.4]} 63... Kg4 {[%clk 0:00:20.2]} 64. g6 {[%clk
0:00:46.7]} 64... Kh5 {[%clk 0:00:10.9]} 65. g7 {[%clk 0:00:45.3]} 65... Kg4
{[%clk 0:00:09.7]} 66. g8=Q+ {[%clk 0:00:43.9]} 66... Kh5 {[%clk 0:00:09.6]} 67.
Qfh8# {[%clk 0:00:42.6]} 1-0